fUSD/lending_fUSD_20250820
["ID","MTS","AMOUNT","RATE_DAILY","PERIOD"]
[380334138,1755691859027,-151.0,0.00011,2]
[380334139,1755691859037,-151.0,0.00011,2]
[380334140,1755691859046,-286.397132,0.00011,2]
[380334141,1755691859056,-151.0,0.00011,2]
[380334142,1755691859066,-151.0,0.00011,2]
[380334143,1755691859076,-151.0,0.00011,2]
[380334144,1755691859085,-286.397132,0.00011,2]
[380334145,1755691859095,-281.152516,0.00011,2]
[380334146,1755691859104,-151.0,0.00011,2]
[380334147,1755691859114,-286.397132,0.00011,2]
[380334148,1755691859125,-151.0,0.00011,2]
[380334149,1755691859134,-301.523081,0.00011,2]
[380334150,1755691859145,-329.066521,0.00011,2]
[380334151,1755691859154,-151.0,0.00011,2]
[380334152,1755691859163,-329.066521,0.00011,2]
[380334153,1755691859173,-286.397132,0.00011,2]
[380334154,1755691859183,-329.066521,0.00011,2]
[380334155,1755691859192,-5794.605985,0.00011,2]
[380334156,1755691859202,-151.0,0.00011,2]
[380334157,1755691859211,-286.397132,0.00011,2]
[380334158,1755691859221,-329.066521,0.00011,2]
[380334159,1755691859231,-5794.605993,0.00011,2]
[380334160,1755691859241,-286.397132,0.00011,2]
[380334161,1755691859251,-151.0,0.00011,2]
[380334162,1755691859261,-329.066521,0.00011,2]
[380334163,1755691859271,-286.397132,0.00011,2]
[380334164,1755691859280,-329.066521,0.00011,2]
[380334165,1755691859290,-151.0,0.00011,2]
[380334166,1755691859299,-286.397132,0.00011,2]
[380334167,1755691859309,-329.066521,0.00011,2]
[380334168,1755691859318,-287.037436,0.00011,2]
[380334169,1755691859327,-286.397132,0.00011,2]
[380334170,1755691859337,-329.066521,0.00011,2]
[380334171,1755691859346,-287.037436,0.00011,2]
[380334172,1755691859356,-286.397132,0.00011,2]
[380334173,1755691859366,-329.066521,0.00011,2]
[380334174,1755691859376,-287.037436,0.00011,2]
[380334175,1755691859385,-329.066521,0.00011,2]
[380334176,1755691859395,-286.397132,0.00011,2]
[380334177,1755691859405,-287.037436,0.00011,2]
[380334178,1755691859414,-329.066521,0.00011,2]
[380334179,1755691859424,-286.397132,0.00011,2]
[380334180,1755691859433,-287.037436,0.00011,2]
[380334181,1755691859443,-329.066521,0.00011,2]
[380334182,1755691859452,-287.037436,0.00011,2]
[380334183,1755691859461,-151.0,0.00011,2]
[380334184,1755691859471,-286.397132,0.00011,2]
[380334185,1755691859480,-329.066521,0.00011,2]
[380334186,1755691859489,-151.0,0.00011,2]
[380334187,1755691859499,-286.397132,0.00011,2]
[380334188,1755691859508,-287.037436,0.00011,2]
[380334189,1755691859517,-329.066521,0.00011,2]
[380334190,1755691859527,-151.0,0.00011,2]
[380334191,1755691859537,-286.397142,0.00011,2]
[380334192,1755691859546,-287.037436,0.00011,2]
[380334193,1755691859555,-329.066521,0.00011,2]
[380334194,1755691859565,-151.0,0.00011,2]
[380334195,1755691859574,-287.037436,0.00011,2]
[380334196,1755691859583,-329.066521,0.00011,2]
[380334197,1755691859593,-151.0,0.00011,2]
[380334198,1755691859603,-287.037436,0.00011,2]
[380334199,1755691859612,-151.0,0.00011,2]
[380334200,1755691859622,-329.066521,0.00011,2]
[380334201,1755691859632,-151.0,0.00011,2]
[380334202,1755691859642,-300.031023,0.00011,2]
[380334203,1755691859652,-287.037436,0.00011,2]
[380334204,1755691859661,-151.0,0.00011,2]
[380334205,1755691859671,-329.066521,0.00011,2]
[380334206,1755691859680,-151.0,0.00011,2]
[380334207,1755691859689,-287.037436,0.00011,2]
[380334208,1755691859699,-151.0,0.00011,2]
[380334209,1755691859708,-329.066521,0.00011,2]
[380334210,1755691859717,-151.257684,0.00011,2]
[380334211,1755691859727,-287.037436,0.00011,2]
[380334212,1755691859740,-151.0,0.00011,2]
[380334213,1755691859749,-329.066519,0.00011,2]
[380334214,1755691859759,-287.037436,0.00011,2]
[380334215,1755691859768,-151.0,0.00011,2]
[380334216,1755691859778,-287.037436,0.00011,2]
[380334217,1755691859787,-151.0,0.00011,2]
[380334218,1755691859797,-287.037436,0.00011,2]
[380334219,1755691859808,-151.0,0.00011,2]
[380334220,1755691859817,-287.037436,0.00011,2]
[380334221,1755691859826,-235.821144,0.00011,2]
[380334222,1755691859835,-151.0,0.00011,2]
[380334223,1755691859844,-287.037436,0.00011,2]
[380334224,1755691859854,-151.0,0.00011,2]
[380334225,1755691859863,-287.037436,0.00011,2]
[380334226,1755691859872,-151.0,0.00011,2]
[380334227,1755691859882,-287.03744,0.00011,2]
[380334228,1755691859891,-151.0,0.00011,2]
[380334229,1755691859901,-151.0,0.00011,2]
[380334230,1755691859910,-151.0,0.00011,2]
[380334231,1755691859919,-151.0,0.00011,2]
[380334232,1755691859929,-151.0,0.00011,2]
[380334233,1755691859938,-151.0,0.00011,2]
[380334234,1755691859947,-151.0,0.00011,2]
[380334235,1755691859956,-151.0,0.00011,2]
[380334236,1755691859966,-151.0,0.00011,2]
[380334237,1755691859975,-151.0,0.00011,2]
[380334238,1755691859984,-151.0,0.00011,2]
[380334239,1755691859993,-151.0,0.00011,2]
[380334240,1755691860003,-151.0,0.00011,2]
[380334241,1755691860012,-151.0,0.00011,2]
[380334242,1755691860021,-151.0,0.00011,2]
[380334243,1755691860030,-151.0,0.00011,2]
[380334244,1755691860039,-151.0,0.00011,2]
[380334245,1755691860050,-151.0,0.00011,2]
[380334246,1755691860059,-151.0,0.00011,2]
[380334247,1755691860068,-151.0,0.00011,2]
[380334248,1755691860078,-151.0,0.00011,2]
[380334249,1755691860088,-151.0,0.00011,2]
[380334250,1755691860098,-151.0,0.00011,2]
[380334251,1755691860108,-186.049325,0.00011,2]
[380334252,1755691860117,-151.0,0.00011,2]
[380334253,1755691860127,-151.0,0.00011,2]
[380334254,1755691860137,-151.0,0.00011,2]
[380334255,1755691860147,-151.0,0.00011,2]
[380334256,1755691860156,-151.0,0.00011,2]
[380334257,1755691860166,-151.0,0.00011,2]
[380334258,1755691860176,-151.454405,0.00011,2]
[380334259,1755691860186,-153.78218,0.00011,2]
[380334260,1755691860196,-151.0,0.00011,2]
[380334261,1755691860206,-151.0,0.00011,2]
[380334262,1755691860215,-151.0,0.00011,2]
[380334263,1755691860226,-151.0,0.00011,2]
[380334264,1755691860235,-151.0,0.00011,2]
[380334265,1755691860245,-462.198119,0.00011,2]
[380334266,1755691860255,-151.0,0.00011,2]
[380334267,1755691860264,-462.198119,0.00011,2]
[380334268,1755691860274,-151.0,0.00011,2]
[380334269,1755691860283,-462.198119,0.00011,2]
[380334270,1755691860293,-151.0,0.00011,2]
[380334271,1755691860303,-462.198119,0.00011,2]
[380334272,1755691860313,-151.0,0.00011,2]
[380334273,1755691860323,-462.198119,0.00011,2]
[380334274,1755691860332,-151.0,0.00011,2]
[380334275,1755691860341,-151.0,0.00011,2]
[380334276,1755691860351,-167.746567,0.00011,2]
[380334277,1755691860361,-462.198119,0.00011,2]
[380334278,1755691860370,-151.0,0.00011,2]
[380334279,1755691860380,-151.0,0.00011,2]
[380334280,1755691860389,-462.198119,0.00011,2]
[380334281,1755691860398,-151.0,0.00011,2]
[380334282,1755691860408,-462.198119,0.00011,2]
[380334283,1755691860418,-206.638341,0.00011,2]
[380334284,1755691860427,-462.198119,0.00011,2]
[380334285,1755691860436,-462.198119,0.00011,2]
[380334286,1755691860446,-462.198119,0.00011,2]
[380334287,1755691860455,-462.198119,0.00011,2]
[380334288,1755691860464,-462.198119,0.00011,2]
[380334289,1755691860474,-462.198119,0.00011,2]
[380334290,1755691860483,-462.198119,0.00011,2]
[380334291,1755691860492,-462.198119,0.00011,2]
[380334292,1755691860501,-462.198119,0.00011,2]
[380334293,1755691860510,-462.198119,0.00011,2]
[380334294,1755691860519,-151.0,0.00011,2]
[380334295,1755691860529,-462.198119,0.00011,2]
[380334296,1755691860538,-462.198127,0.00011,2]
[380334297,1755691860547,-178.960945,0.00011,2]
[380334298,1755691860557,-151.0,0.00011,2]
[380334299,1755691860566,-151.186818,0.00011,2]
[380334300,1755691860575,-173.839743,0.00011,2]
[380334301,1755691860584,-173.839743,0.00011,2]
[380334302,1755691860593,-173.839743,0.00011,2]
[380334303,1755691860603,-173.839743,0.00011,2]
[380334304,1755691860612,-173.839743,0.00011,2]
[380334305,1755691860621,-173.839743,0.00011,2]
[380334306,1755691860630,-151.0,0.00011,2]
[380334307,1755691860641,-173.839743,0.00011,2]
[380334308,1755691860650,-151.181606,0.00011,2]
[380334309,1755691860660,-173.839743,0.00011,2]
[380334310,1755691860669,-151.0,0.00011,2]
[380334311,1755691860678,-151.0,0.00011,2]
[380334312,1755691860688,-151.0,0.00011,2]
[380334313,1755691860697,-151.0,0.00011,2]
[380334314,1755691860706,-151.0,0.00011,2]
[380334315,1755691860715,-151.0,0.00011,2]
[380334316,1755691860725,-268.545309,0.00011,2]
[380334317,1755691860737,-341.506234,0.00011,2]
[380334318,1755691860747,-341.506234,0.00011,2]
[380334319,1755691860756,-700.201196,0.00011,2]
[380334320,1755691860765,-173.839743,0.00011,2]
[380334321,1755691860775,-341.506234,0.00011,2]
[380334322,1755691860784,-700.201196,0.00011,2]
[380334323,1755691860793,-173.839743,0.00011,2]
[380334324,1755691860802,-341.506234,0.00011,2]
[380334325,1755691860813,-173.839743,0.00011,2]
[380334326,1755691860822,-341.506234,0.00011,2]
[380334327,1755691860831,-700.201196,0.00011,2]
[380334328,1755691860841,-173.839743,0.00011,2]
[380334329,1755691860850,-700.201196,0.00011,2]
[380334330,1755691860859,-341.506234,0.00011,2]
[380334331,1755691860868,-173.839743,0.00011,2]
[380334332,1755691860877,-1670.917246,0.00011,2]
[380334333,1755691860886,-341.506234,0.00011,2]
[380334334,1755691860897,-700.201196,0.00011,2]
[380334335,1755691860906,-1670.917246,0.00011,2]
[380334336,1755691860915,-341.506234,0.00011,2]
[380334337,1755691860924,-700.201196,0.00011,2]
[380334338,1755691860934,-1670.917246,0.00011,2]
[380334339,1755691860944,-341.506234,0.00011,2]
[380334340,1755691860953,-700.201196,0.00011,2]
[380334341,1755691860962,-173.839743,0.00011,2]
[380334342,1755691860971,-1670.917246,0.00011,2]
[380334343,1755691860980,-341.506234,0.00011,2]
[380334344,1755691860990,-700.201196,0.00011,2]
[380334345,1755691860999,-173.839743,0.00011,2]
[380334346,1755691861008,-1670.917246,0.00011,2]
[380334347,1755691861017,-341.506234,0.00011,2]
[380334348,1755691861028,-700.201196,0.00011,2]
[380334349,1755691861038,-173.839743,0.00011,2]
[380334350,1755691861048,-341.506234,0.00011,2]
[380334351,1755691861058,-700.201196,0.00011,2]
[380334352,1755691861067,-173.839743,0.00011,2]
[380334353,1755691861076,-341.506234,0.00011,2]
[380334354,1755691861086,-700.201196,0.00011,2]
[380334355,1755691861096,-173.839743,0.00011,2]
[380334356,1755691861105,-700.201196,0.00011,2]
[380334357,1755691861115,-173.839743,0.00011,2]
[380334358,1755691861124,-700.201196,0.00011,2]
[380334359,1755691861134,-341.506234,0.00011,2]
[380334360,1755691861144,-173.839752,0.00011,2]
[380334361,1755691861154,-1670.917246,0.00011,2]
[380334362,1755691861163,-700.201196,0.00011,2]
[380334363,1755691861172,-341.506234,0.00011,2]
[380334364,1755691861182,-341.506234,0.00011,2]
[380334365,1755691861192,-700.201196,0.00011,2]
[380334366,1755691861202,-1670.917246,0.00011,2]
[380334367,1755691861212,-151.0,0.00011,2]
[380334368,1755691861222,-341.506234,0.00011,2]
[380334369,1755691861233,-700.201196,0.00011,2]
[380334370,1755691861243,-1670.917246,0.00011,2]
[380334371,1755691861255,-151.0,0.00011,2]
[380334372,1755691861265,-700.201196,0.00011,2]
[380334373,1755691861274,-1670.917246,0.00011,2]
[380334374,1755691861284,-341.506234,0.00011,2]
[380334375,1755691861295,-151.0,0.00011,2]
[380334376,1755691861304,-341.506234,0.00011,2]
[380334377,1755691861314,-1670.917246,0.00011,2]
[380334378,1755691861324,-151.0,0.00011,2]
[380334379,1755691861334,-341.506229,0.00011,2]
[380334380,1755691861343,-1670.917246,0.00011,2]
[380334381,1755691861353,-700.201196,0.00011,2]
[380334382,1755691861363,-1670.917246,0.00011,2]
[380334383,1755691861373,-700.201196,0.00011,2]
[380334384,1755691861382,-1670.917246,0.00011,2]
[380334385,1755691861395,-700.201198,0.00011,2]
[380334386,1755691861404,-1670.917246,0.00011,2]
[380334387,1755691861415,-1670.917246,0.00011,2]
[380334388,1755691861425,-1670.917246,0.00011,2]
[380334389,1755691861435,-1670.917246,0.00011,2]
[380334390,1755691861445,-1670.917246,0.00011,2]
[380334391,1755691861455,-1670.917246,0.00011,2]
[380334392,1755691861465,-1670.917255,0.00011,2]
[380334393,1755691861475,-151.0,0.00011,2]
[380334394,1755691861485,-151.0,0.00011,2]
[380334395,1755691861652,-151.0,0.00011,2]
[380334396,1755691861666,-151.0,0.00011,2]
[380334397,1755691861675,-151.0,0.00011,2]
[380334398,1755691861685,-151.0,0.00011,2]
[380334399,1755691861694,-151.0,0.00011,2]
[380334400,1755691861703,-151.579801,0.00011,2]
[380334401,1755691861712,-152.307233,0.00011,2]
[380334402,1755691861722,-151.0,0.00011,2]
[380334403,1755691861734,-151.0,0.00011,2]
[380334404,1755691861744,-151.0,0.00011,2]
[380334405,1755691861754,-151.0,0.00011,2]
[380334406,1755691861763,-151.0,0.00011,2]
[380334407,1755691861774,-548.993428,0.00011,2]
[380334408,1755691861783,-151.0,0.00011,2]
[380334409,1755691861793,-151.0,0.00011,2]
[380334410,1755691861802,-548.993428,0.00011,2]
[380334411,1755691861811,-151.0,0.00011,2]
[380334412,1755691861823,-151.0,0.00011,2]
[380334413,1755691861832,-548.993428,0.00011,2]
[380334414,1755691861841,-260.871452,0.00011,2]
[380334415,1755691861851,-151.0,0.00011,2]
[380334416,1755691861860,-548.993428,0.00011,2]
[380334417,1755691861869,-151.0,0.00011,2]
[380334418,1755691861879,-548.993428,0.00011,2]
[380334419,1755691861888,-151.0,0.00011,2]
[380334420,1755691861899,-548.993428,0.00011,2]
[380334421,1755691861908,-548.993428,0.00011,2]
[380334422,1755691861918,-417.804054,0.00011,2]
[380334423,1755691861928,-548.993428,0.00011,2]
[380334424,1755691861937,-151.0,0.00011,2]
[380334425,1755691861946,-417.804054,0.00011,2]
[380334426,1755691861956,-548.993428,0.00011,2]
[380334427,1755691861966,-151.0,0.00011,2]
[380334428,1755691861975,-417.804054,0.00011,2]
[380334429,1755691861985,-151.0,0.00011,2]
[380334430,1755691861995,-151.0,0.00011,2]
[380334431,1755691862005,-417.804054,0.00011,2]
[380334432,1755691862015,-151.0,0.00011,2]
[380334433,1755691862025,-548.993428,0.00011,2]
[380334434,1755691862034,-151.0,0.00011,2]
[380334435,1755691862044,-151.0,0.00011,2]
[380334436,1755691862054,-417.804054,0.00011,2]
[380334437,1755691862065,-151.0,0.00011,2]
[380334438,1755691862074,-151.0,0.00011,2]
[380334439,1755691862085,-548.993428,0.00011,2]
[380334440,1755691862094,-417.804054,0.00011,2]
[380334441,1755691862104,-151.0,0.00011,2]
[380334442,1755691862114,-548.993428,0.00011,2]
[380334443,1755691862124,-151.0,0.00011,2]
[380334444,1755691862134,-417.804054,0.00011,2]
[380334445,1755691862146,-151.0,0.00011,2]
[380334446,1755691862155,-548.993428,0.00011,2]
[380334447,1755691862165,-417.804054,0.00011,2]
[380334448,1755691862175,-151.0,0.00011,2]
[380334449,1755691862185,-548.993428,0.00011,2]
[380334450,1755691862195,-417.804054,0.00011,2]
[380334451,1755691862204,-151.0,0.00011,2]
[380334452,1755691862213,-151.0,0.00011,2]
[380334453,1755691862223,-548.993428,0.00011,2]
[380334454,1755691862232,-417.804054,0.00011,2]
[380334455,1755691862242,-151.0,0.00011,2]
[380334456,1755691862251,-300.717446,0.00011,2]
[380334457,1755691862261,-548.993428,0.00011,2]
[380334458,1755691862271,-417.804054,0.00011,2]
[380334459,1755691862281,-151.0,0.00011,2]
[380334460,1755691862292,-548.993428,0.00011,2]
[380334461,1755691862302,-417.804054,0.00011,2]
[380334462,1755691862312,-548.993428,0.00011,2]
[380334463,1755691862322,-417.804054,0.00011,2]
[380334464,1755691862331,-548.993428,0.00011,2]
[380334465,1755691862341,-417.804054,0.00011,2]
[380334466,1755691862350,-417.804054,0.00011,2]
[380334467,1755691862360,-548.993429,0.00011,2]
[380334468,1755691862369,-566.606062,0.00011,2]
[380334469,1755691862379,-417.804054,0.00011,2]
[380334470,1755691862389,-566.606062,0.00011,2]
[380334471,1755691862399,-417.804054,0.00011,2]
[380334472,1755691862410,-417.804054,0.00011,2]
[380334473,1755691862420,-566.606062,0.00011,2]
[380334474,1755691862430,-417.804054,0.00011,2]
[380334475,1755691862439,-566.606062,0.00011,2]
[380334476,1755691862449,-417.804064,0.00011,2]
[380334477,1755691862460,-566.606062,0.00011,2]
[380334478,1755691862469,-566.606062,0.00011,2]
[380334479,1755691862480,-566.606062,0.00011,2]
[380334480,1755691862492,-566.606062,0.00011,2]
[380334481,1755691862503,-151.0,0.00011,2]
[380334482,1755691862515,-6789.54258455,0.00011043,2]
[380334483,1755691862526,-165.38,0.00011077,2]
[380334484,1755691862537,-1132.86343253,0.00011099,2]
[380334485,1755691862547,-1132.86343253,0.00011099,2]
[380334486,1755691862556,-1132.86343253,0.00011099,2]
[380334487,1755691862565,-1132.86343253,0.00011099,2]
[380334488,1755691862575,-1132.86343253,0.00011099,2]
[380334489,1755691862584,-1132.86343253,0.00011099,2]
[380334490,1755691862594,-1132.86343253,0.00011099,2]
[380334491,1755691862603,-1132.86343253,0.00011099,2]
[380334492,1755691862612,-1132.86343253,0.00011099,2]
[380334493,1755691862622,-1132.86343253,0.00011099,2]
[380334494,1755691862633,-9286.6334409,0.00011099,2]
[380334495,1755691862645,-9286.63344084,0.00011099,2]
[380334496,1755691862654,-9286.63344084,0.00011099,2]
[380334497,1755691862664,-9286.63344084,0.00011099,2]
[380334498,1755691862673,-9286.63344084,0.00011099,2]
[380334499,1755691862682,-9286.63344084,0.00011099,2]
[380334500,1755691862691,-9286.63344084,0.00011099,2]
[380334501,1755691862701,-9286.63344084,0.00011099,2]
[380334502,1755691862712,-9286.63344084,0.00011099,2]
[380334503,1755691862723,-9286.63344084,0.00011099,2]
[380334504,1755691862736,-150.0,0.000111,2]
[380334505,1755691862746,-150.0,0.00011174,2]
[380334506,1755691862756,-200.0,0.00011174,2]
[380334507,1755691862766,-150.0,0.00011174,2]
[380334508,1755691862775,-500.0,0.00011174,2]
[380334509,1755691862784,-150.0,0.00011174,2]
[380334510,1755691862794,-248.4,0.00011195,2]
[380334511,1755691862803,-2712.72,0.000112,2]
[380334512,1755691862815,-201.76200709,0.00011202,2]
[380334513,1755691862825,-202.36947965,0.00011202,2]
[380334514,1755691862835,-200.0,0.00011202,2]
[380334515,1755691862845,-500.0,0.00011202,2]
[380334516,1755691862855,-150.0,0.00011202,2]
[380334517,1755691862873,-271.95144378,0.00011202,2]
[380334518,1755691862886,-200.0,0.00011202,2]
[380334519,1755691862899,-446.0,0.00011202,2]
[380334520,1755691862908,-150.0,0.00011202,2]
[380334521,1755691862918,-150.0,0.00011202,2]
[380334522,1755691862929,-150.0,0.00011202,2]
[380334523,1755691862939,-500.0,0.00011273,2]
[380334524,1755691862951,-150.0,0.000113,2]
[380334525,1755691862961,-234.32,0.00011336,2]
[380334526,1755691862971,-160.32236936,0.00011369,2]
[380334527,1755691862981,-255.0,0.00011404,2]
[380334528,1755691862991,-150.0,0.00011448,2]
[380334529,1755691863001,-150.0,0.00011448,2]
[380334530,1755691863012,-500.0,0.00011448,2]
[380334531,1755691863022,-150.0,0.00011448,2]
[380334532,1755691863032,-234.0,0.00011476,2]
[380334533,1755691863043,-150.0,0.00011476,2]
[380334534,1755691863053,-446.0,0.00011476,2]
[380334535,1755691863064,-150.0,0.00011476,2]
[380334536,1755691863078,-150.0,0.00011476,2]
[380334537,1755691863090,-2751.0,0.00011507,2]
[380334538,1755691863101,-500.0,0.00011521,2]
[380334539,1755691863112,-1000.0,0.00011521,2]
[380334540,1755691863123,-1086.08403236,0.00011521,2]
[380334541,1755691863135,-1000.0,0.00011521,2]
[380334542,1755691863147,-1296.9516967,0.00011534,2]
[380334543,1755691863159,-500.0,0.00011547,2]
[380334544,1755691863172,-289.3890397,0.00011659,2]
[380334545,1755691863185,-250.0,0.00011713,2]
[380334546,1755691863196,-150.0,0.00011722,2]
[380334547,1755691863207,-150.0,0.00011722,2]
[380334548,1755691863217,-334.0,0.00011722,2]
[380334549,1755691863228,-150.0,0.00011722,2]
[380334550,1755691863239,-250.0,0.0001175,2]
[380334551,1755691863250,-446.0,0.0001175,2]
[380334552,1755691863260,-251.35823569,0.0001175,2]
[380334553,1755691863270,-256.0,0.0001175,2]
[380334554,1755691863280,-160.0,0.00011818,2]
[380334555,1755691863290,-287.61899177,0.00011818,2]
[380334556,1755691863301,-500.0,0.00011821,2]
[380334557,1755691863311,-1000.0,0.00011838,2]
[380334558,1755691863322,-165.38,0.00011922,2]
[380334559,1755691863332,-150.0,0.00011996,2]
[380334560,1755691863343,-250.0,0.00011996,2]
[380334561,1755691863353,-150.0,0.00011996,2]
[380334562,1755691863363,-1167.6676729,0.00012,2]
[380334563,1755691863374,-446.0,0.00012024,2]
[380334564,1755691863384,-587.0,0.0001204,2]
[380334565,1755691863397,-1680.0,0.0001204,2]
[380334566,1755691863408,-1500.0,0.00012068,2]
[380334567,1755691863418,-1500.0,0.00012068,2]
[380334568,1755691863429,-500.0,0.00012095,2]
[380334569,1755691863439,-772.15820929,0.0001223,2]
[380334570,1755691863449,-160.0,0.0001227,2]
[380334571,1755691863460,-237.0,0.0001227,2]
[380334572,1755691863470,-151.0,0.00012286,2]
[380334573,1755691863481,-446.0,0.00012298,2]
[380334574,1755691863491,-843.97594471,0.00012318,2]
[380334575,1755691863502,-160.0,0.00012318,2]
[380334576,1755691863512,-212.04014818,0.00012319,2]
[380334577,1755691863523,-500.0,0.00012369,2]
[380334578,1755691863534,-1331.752,0.00012411,2]
[380334579,1755691863543,-1297.0,0.00012411,2]
[380334580,1755691863554,-599.0,0.00012411,2]
[380334581,1755691863564,-4152.0,0.00012412,2]
[380334582,1755691863575,-21500.0,0.00012412,2]
[380334583,1755691863585,-6090.0,0.00012412,2]
[380334584,1755691863595,-717.0,0.00012412,2]
[380334585,1755691863606,-163.0,0.00012438,3]
[380334586,1755691863616,-248.4,0.00012439,2]
[380334587,1755691863627,-150.0,0.0001248,2]
[380334588,1755691863636,-666.0,0.00012499,2]
[380334589,1755691863649,-173203.38,0.000125,2]
[380334590,1755691863659,-195.622,0.00012516,2]
[380334591,1755691863669,-195.542,0.00012516,2]
[380334592,1755691863679,-198.053,0.00012516,2]
[380334593,1755691863688,-203.243,0.00012516,2]
[380334594,1755691863698,-176.523,0.00012516,2]
[380334595,1755691863708,-296.438,0.00012516,2]
[380334596,1755691863718,-245.888,0.00012516,2]
[380334597,1755691863729,-186.346,0.00012516,2]
[380334598,1755691863746,-250.0,0.00012516,2]
[380334599,1755691863756,-204.989,0.00012516,2]
[380334600,1755691863766,-207.04,0.00012516,2]
[380334601,1755691863781,-159.946,0.00012516,2]
[380334602,1755691863794,-154.0,0.00012516,2]
[380334603,1755691864286,-210.024,0.00012516,2]
[380334604,1755691864312,-904.0,0.00012516,2]
[380334605,1755691864323,-2029.0,0.00012516,2]
[380334606,1755691864333,-3371.0,0.00012516,2]
[380334607,1755691864343,-1255.0,0.00012516,2]
[380334608,1755691864353,-433.0,0.00012526,2]
[380334609,1755691864363,-446.0,0.00012572,2]
[380334610,1755691864373,-234.32,0.00012595,2]
[380334611,1755691864383,-233.9719036,0.00012595,2]
[380334612,1755691864394,-8932.51,0.000126,2]
[380334613,1755691864403,-1003.89816877,0.00012616,2]
[380334614,1755691864413,-1803.55957022,0.00012616,2]
[380334615,1755691864423,-500.0,0.00012643,2]
[380334616,1755691864432,-509.22989307,0.00012733,2]
[380334617,1755691864442,-446.0,0.00012846,2]
[380334618,1755691864452,-500.0,0.00012917,2]
[380334619,1755691864462,-1000.0,0.00013022,2]
[380334620,1755691864472,-605.15,0.00013119,2]
[380334621,1755691864482,-446.0,0.0001312,2]
[380334622,1755691864491,-160.0,0.00013187,2]
[380334623,1755691864502,-298.26089446,0.00013187,2]
[380334624,1755691864512,-500.0,0.00013191,2]
[380334625,1755691864521,-823.0,0.00013244,2]
[380334626,1755691864531,-446.0,0.00013394,2]
[380334627,1755691864541,-150.94,0.00013425,2]
[380334628,1755691864551,-500.0,0.00013465,2]
[380334629,1755691864560,-2000.0,0.00013599,2]
[380334630,1755691864570,-352.29,0.0001363,2]
[380334631,1755691864580,-458.46930693,0.00013643,2]
[380334632,1755691864590,-446.0,0.00013668,2]
[380334633,1755691864599,-150.0,0.0001367,2]
[380334634,1755691864609,-248.4,0.00013683,2]
[380334635,1755691864619,-666.0,0.00013698,2]
[380334636,1755691864628,-150.0,0.00013698,2]
[380334637,1755691864638,-500.0,0.00013699,2]